bitfinex/quotes_ETHUSD_20260114
["timestamp","ask_amount","ask_price","bid_price","bid_amount"]
[1768356044629,1.38070652,3331.7,3330.7,0.41]
[1768356044795,1.38070652,3331.7,3330.3,3.0037285]
[1768356044990,1.38070652,3331.7,3330.6,0.411]
[1768356046030,1.38070652,3331.7,3330.6,1.81138712]
[1768356046327,6.00276126,3331.8,3330.7,1.58152583]
[1768356046696,7.38335064,3331.9,3330.7,1.58152583]
[1768356046926,10.3846727,3331.9,3330.7,1.58152583]
[1768356047115,1.38070652,3331.8,3330.7,1.40038712]
[1768356047319,1.38070652,3331.8,3330.7,0.41]
[1768356047720,1.38070652,3331.8,3330.6,0.411]
[1768356048111,1.38070652,3331.8,3331.0,0.001]
[1768356048324,2.41917379,3331.7,3331.0,0.001]
[1768356048829,6.00312162,3331.6,3331.0,0.001]
[1768356051994,1.38070652,3331.5,3331.0,0.001]
[1768356053428,4.38244752,3331.4,3331.0,0.001]
[1768356053629,3.001741,3331.4,3331.0,0.001]
[1768356053929,3.74015287,3331.4,3331.0,0.001]
[1768356054231,6.74189387,3331.4,3331.0,0.001]
[1768356055029,8.12260039,3331.4,3331.0,0.001]
[1768356058028,6.74189387,3331.4,3331.0,0.001]
[1768356058231,3.74015287,3331.4,3331.0,0.001]
[1768356059034,6.74189387,3331.4,3331.0,0.001]
[1768356059829,3.74015287,3331.4,3331.3,0.001]
[1768356062127,5.12085939,3331.4,3331.3,0.001]
[1768356062501,3.74015287,3331.4,3331.3,0.001]
[1768356067540,5.20446272,3331.4,3331.3,0.001]
[1768356068554,8.20620372,3331.4,3330.6,0.001]
[1768356069226,1.46430985,3331.3,3330.6,0.001]
[1768356069934,1.46430985,3331.3,3330.6,1.40361529]
[1768356070108,6.003482,3331.4,3330.6,1.40361529]
[1768356072634,6.003482,3331.4,3330.9,0.001]
[1768356072848,7.05061958,3331.4,3330.9,0.001]
[1768356073010,8.51492943,3331.4,3330.9,0.001]
[1768356073205,1.46430985,3331.3,3330.9,0.001]
[1768356075122,3.00192122,3331.2,3330.9,0.001]
[1768356077613,6.00375047,3331.3,3330.9,0.001]
[1768356077813,6.00375047,3331.3,3330.9,1.51661453]
[1768356078040,6.00375047,3331.3,3330.6,1.51661453]
[1768356080852,1.4554777,3331.2,3330.6,0.001]
[1768356081450,6.00375047,3331.3,3330.6,1.51661453]
[1768356084257,6.00375047,3331.3,3330.9,0.001]
[1768356084457,6.85438705,3331.3,3330.9,0.001]
[1768356084625,0.002,3331.0,3330.9,0.001]
[1768356084952,0.002,3331.0,3330.6,1.51661453]
[1768356084953,1.45559708,3331.0,3330.6,0.001]
[1768356085123,0.00011938,3331.0,3330.6,0.001]
[1768356087177,0.00011938,3331.0,3330.3,0.001]
[1768356087665,0.00011938,3331.0,3329.4,4.51908093]
[1768356087823,0.00011938,3331.0,3329.6,1.51561453]
[1768356088025,1.4554777,3330.8,3329.6,1.51561453]
[1768356088231,1.4554777,3330.4,3329.2,1.51561453]
[1768356089368,1.4554777,3330.2,3328.6,3.0042369]
[1768356089574,1.4554777,3330.1,3328.8,1.51561453]
[1768356089877,1.4554777,3330.0,3329.0,1.51561453]
[1768356090233,1.4554777,3330.0,3329.0,1.92561453]
[1768356090542,1.4554777,3330.0,3328.8,0.41]
[1768356090730,1.4554777,3330.0,3328.8,1.51561453]
[1768356091128,1.4554777,3329.8,3328.8,1.51561453]
[1768356091331,1.4554777,3329.8,3328.8,1.70817598]
[1768356092238,1.4554777,3329.8,3328.8,0.19256145]
[1768356092434,1.4554777,3329.8,3328.9,3.00399531]
[1768356092639,0.00011938,3331.0,3329.6,1.51561453]
[1768356092875,0.00011938,3331.0,3329.8,1.51561453]
[1768356093062,1.45559708,3331.0,3329.8,1.51561453]
[1768356093243,1.45559708,3331.0,3329.9,7.52180089]
[1768356093447,4.4577391,3331.0,3329.9,7.52180089]
[1768356093848,1.4554777,3330.9,3329.9,4.51870771]
[1768356094181,1.4554777,3330.9,3330.0,0.75218894]
[1768356094540,1.4554777,3330.9,3329.0,1.51561453]
[1768356094541,1.4554777,3330.8,3329.0,1.51561453]
[1768356094778,1.4554777,3330.8,3329.5,1.51561453]
[1768356094981,1.4554777,3330.8,3329.5,4.51901234]
[1768356096379,1.4554777,3330.8,3329.5,1.51561453]
[1768356096572,1.44664691,3330.6,3329.6,0.15156145]
[1768356096881,1.44664691,3330.6,3329.5,4.51903182]
[1768356097080,1.44664691,3330.6,3329.8,0.001]
[1768356099273,3.00255216,3330.5,3329.8,0.001]
[1768356099679,4.44919907,3330.5,3329.8,0.001]
[1768356100192,1.44664691,3330.4,3329.8,0.001]
[1768356100389,0.74517512,3330.3,3329.8,0.001]
[1768356100681,1.44664691,3330.4,3329.8,0.001]
[1768356104280,1.44664691,3330.3,3329.8,0.001]
[1768356104485,3.00265266,3330.4,3329.8,0.001]
[1768356104694,0.00011938,3331.0,3330.4,1.46713023]
[1768356104897,0.002,3331.3,3330.6,1.46713023]
[1768356107386,0.002,3331.3,3330.8,1.46713023]
[1768356108652,0.002,3331.3,3331.0,1.46713023]
[1768356108853,0.002,3331.3,3331.1,0.41]
[1768356109694,0.002,3331.3,3331.1,1.87713023]
[1768356109990,0.002,3331.3,3331.2,0.18771302]
[1768356110790,3.00121694,3332.0,3331.2,1.65484325]
[1768356111487,0.41,3332.1,3331.2,1.65484325]
[1768356111488,3.41113404,3332.1,3331.2,1.65484325]
[1768356111693,6.41226808,3332.1,3331.2,1.65484325]
[1768356112091,1.44664691,3332.0,3331.3,0.41]
[1768356112995,1.44664691,3331.9,3330.6,3.00246169]
[1768356113159,1.44664691,3331.9,3330.4,4.46974737]
[1768356113362,1.44664691,3331.9,3330.5,0.41]
[1768356113563,1.44664691,3331.7,3330.5,3.00249253]
[1768356113758,1.44664691,3331.7,3330.6,0.41]
[1768356113988,1.44664691,3331.6,3330.7,0.41]
[1768356115692,1.44664691,3331.4,3330.7,0.41]
[1768356115897,3.0016509,3331.5,3330.7,0.41]
[1768356116592,3.0016509,3331.5,3330.8,0.41]
[1768356116801,7.44985555,3331.6,3330.8,0.41]
[1768356116969,0.81947964,3331.5,3330.8,0.41]
[1768356119308,3.001741,3331.4,3330.8,0.41]
[1768356119986,3.001741,3331.4,3331.1,0.001]
[1768356120188,1.44664691,3331.3,3331.1,0.001]
[1768356120610,5.26781336,3331.5,3331.1,0.001]
[1768356120988,0.81947964,3331.5,3331.1,0.001]
[1768356121190,3.00138301,3331.8,3331.1,0.001]
[1768356121390,4.44793746,3331.9,3331.1,0.001]
[1768356121620,1.44664691,3331.8,3331.1,0.001]
[1768356123217,3.00129055,3331.9,3331.1,0.001]
[1768356123606,3.00129055,3331.9,3331.1,1.46813023]
[1768356124680,0.41,3332.2,3331.3,1.46713023]
[1768356124681,4.85767978,3332.2,3331.3,1.46713023]
[1768356125786,4.85767978,3332.2,3331.3,4.46896006]
[1768356125990,7.85871265,3332.2,3331.3,1.46713023]
[1768356126387,1.53001483,3332.1,3331.3,1.46713023]
[1768356126693,1.53001483,3332.1,3331.4,0.41]
[1768356127424,1.53001483,3332.1,3331.2,3.00190795]
[1768356127600,4.53115513,3332.1,3331.3,0.41]
[1768356128018,1.53001483,3332.1,3331.3,4.84670648]
[1768356128484,0.41,3332.2,3331.4,1.43488816]
[1768356128692,1.53201483,3332.5,3331.4,1.43488816]
[1768356128693,4.53284013,3332.5,3331.4,1.43488816]
[1768356128991,4.53284013,3332.5,3331.6,1.43488816]
[1768356129902,4.53284013,3332.5,3331.6,4.43640547]
[1768356130693,1.53201483,3332.5,3331.7,1.43488816]
[1768356130928,4.53278263,3332.5,3331.8,0.41]
[1768356131128,4.53278263,3332.5,3331.8,0.89464055]
[1768356131995,0.002,3332.2,3331.8,0.89464055]
[1768356132195,0.002,3332.2,3331.8,0.41]
[1768356134335,9.49236609,3333.0,3332.1,1.43488816]
[1768356134336,1.38786337,3332.9,3332.1,1.43488816]
[1768356135646,4.5304949,3332.8,3332.1,1.43488816]
[1768356136675,1.53001483,3332.7,3331.9,3.00128786]
[1768356136820,1.53001483,3332.7,3332.0,0.34112879]
[1768356137547,1.53001483,3332.7,3332.0,3.34228858]
[1768356138154,1.53001483,3332.7,3332.0,0.34112879]
[1768356138309,3.00049586,3332.8,3332.1,1.46845532]
[1768356138506,0.002,3333.0,3332.1,1.46845532]
[1768356138723,0.002,3333.0,3332.3,1.46845532]
[1768356139033,0.002,3333.0,3332.5,1.46845532]
[1768356139933,1.50991868,3332.9,3332.2,0.78119651]
[1768356140136,9.72524859,3332.2,3331.6,0.001]
[1768356140325,9.72524859,3331.8,3331.1,0.001]
[1768356140525,11.23516727,3331.8,3331.1,0.001]
[1768356140725,1.50991868,3331.7,3331.1,0.001]
[1768356142206,1.50991868,3331.5,3331.1,0.001]
[1768356143029,3.41117237,3332.1,3331.1,1.46945532]
[1768356143030,3.41116555,3332.1,3331.1,1.46945532]
[1768356143334,1.50991868,3332.0,3331.1,0.411]
[1768356143635,1.50991868,3332.0,3331.1,0.001]
[1768356143804,1.50991868,3332.0,3331.4,0.001]
[1768356144009,1.50991868,3331.8,3331.4,0.001]
[1768356144242,1.50991868,3331.6,3331.4,0.001]
[1768356144806,3.00331138,3331.9,3331.4,0.001]
[1768356144807,0.002,3331.9,3331.4,0.001]
[1768356145238,3.00138063,3331.8,3331.4,0.001]
[1768356145936,0.002,3331.9,3331.4,0.001]
[1768356147446,0.15319187,3331.9,3331.4,0.001]
[1768356148843,1.66311055,3331.9,3331.1,0.001]
[1768356149044,1.50991868,3331.7,3331.1,0.001]
[1768356149544,0.41,3331.8,3331.1,0.001]
[1768356149849,0.002,3332.2,3331.2,1.46845532]
[1768356150057,0.002,3334.8,3331.2,1.46845532]
[1768356150058,3.00130132,3334.2,3332.9,0.16]
[1768356150218,2.99896767,3334.5,3333.1,1.46845532]
[1768356150415,0.002,3334.8,3333.1,1.46845532]
[1768356150921,0.002,3334.8,3333.2,6.00024]
[1768356150922,0.002,3334.4,3333.2,6.00024]
[1768356151143,0.002,3334.4,3333.3,1.46845532]
[1768356153227,0.002,3334.4,3333.4,2.99994]
[1768356153420,0.002,3334.4,3333.3,3.00000118]
[1768356153623,0.002,3334.4,3333.4,0.60002066]
[1768356154123,1.51191868,3334.4,3333.4,0.60002066]
[1768356154330,1.51191868,3334.4,3333.5,0.41]
[1768356154844,0.002,3334.4,3333.5,0.41]
[1768356155162,0.002,3334.4,3333.5,3.40980314]
[1768356155363,0.002,3334.4,3333.6,0.7009825]
[1768356155803,5.99944468,3334.8,3333.6,0.7009825]
[1768356155804,0.002,3334.8,3334.1,1.4598905]
[1768356156069,0.002,3334.8,3333.6,13.59603795]
[1768356156070,0.002,3335.1,3334.3,1.4598905]
[1768356157165,0.002,3334.4,3334.3,4.45902075]
[1768356157354,0.002,3335.1,3334.3,5.24584746]
[1768356158379,0.002,3335.1,3334.4,1.8698905]
[1768356158537,0.002,3335.1,3334.5,1.4598905]
[1768356158877,0.002,3335.8,3334.8,1.4598905]
[1768356159079,0.002,3335.9,3335.2,1.4598905]
[1768356159241,0.002,3335.9,3335.3,2.99823104]
[1768356159444,0.002,3335.9,3335.4,1.15465321]
[1768356160567,0.002,3335.9,3335.5,0.409]
[1768356160769,0.002,3335.9,3335.0,2.99841309]
[1768356161071,0.002,3335.9,3334.7,1.4598905]
[1768356161368,0.002,3335.9,3334.9,2.99851287]
[1768356161570,0.002,3335.9,3335.0,0.87084034]
[1768356162842,0.002,3335.9,3335.1,0.409]
[1768356163042,0.002,3335.9,3335.0,0.87084034]
[1768356163684,0.002,3335.9,3334.3,1.4598905]
[1768356163887,1.51047176,3335.9,3334.4,0.409]
[1768356164482,1.51047176,3335.9,3334.5,0.409]
[1768356164784,1.51047176,3335.9,3334.3,3.02909743]
[1768356164971,1.51047176,3335.9,3334.4,3.40796912]
[1768356165168,1.51047176,3335.9,3334.5,0.78970624]
[1768356165169,0.15104718,3335.8,3334.5,0.78970624]
[1768356166458,5.99574302,3335.7,3334.5,0.78970624]
[1768356166959,1.50847176,3335.6,3334.3,0.0299913]
[1768356167162,1.50847176,3335.5,3334.0,0.029994]
[1768356167992,1.50847176,3335.5,3334.0,3.02939374]
[1768356168189,1.50847176,3335.5,3334.0,0.029994]
[1768356168367,0.409,3335.6,3333.8,0.4389958]
[1768356168368,1.50847176,3335.3,3333.8,0.4389958]
[1768356168567,1.50847176,3335.1,3333.9,0.001]
[1768356170593,5.99700148,3335.0,3333.9,0.001]
[1768356174299,2.99823104,3335.3,3333.9,1.4908854]
[1768356174689,5.99646208,3335.3,3333.9,1.4908854]
[1768356175188,0.002,3335.4,3334.1,1.4598905]
[1768356175492,1.51047176,3335.4,3334.0,0.409]
[1768356175693,1.50847176,3335.2,3334.0,0.409]
[1768356176066,1.50847176,3335.2,3333.9,0.001]
[1768356176991,5.99682168,3335.1,3333.9,0.001]
[1768356178171,7.50529344,3335.1,3333.9,0.001]
[1768356179502,1.50847176,3335.0,3333.9,0.001]
[1768356179668,2.2590011,3334.9,3333.9,0.001]
[1768356180068,1.50847176,3334.8,3333.9,0.001]
[1768356180800,1.50847176,3334.8,3334.2,0.001]
[1768356181179,2.9987705,3334.7,3334.2,0.001]
[1768356181900,2.99868572,3334.8,3334.2,0.001]
[1768356182098,0.6747888,3334.7,3334.2,0.001]
[1768356184002,2.99868058,3334.8,3334.2,0.001]
[1768356184502,5.99736116,3334.8,3334.2,0.001]
[1768356185093,2.99868058,3334.8,3334.2,0.001]
[1768356185277,1.40984146,3334.9,3334.2,0.001]
[1768356186718,1.40984146,3334.9,3332.7,1.45425784]
[1768356186879,1.40984146,3334.7,3332.8,3.00042686]
[1768356187080,1.40984146,3334.5,3332.8,4.4546847]
[1768356187419,1.40984146,3334.3,3333.0,3.0002338]
[1768356187578,1.40984146,3334.3,3333.0,4.45449164]
[1768356187778,1.40984146,3334.3,3333.0,1.45425784]
[1768356188103,1.04069624,3334.2,3333.0,1.45425784]
[1768356188307,0.409,3334.1,3333.0,1.45425784]
[1768356189482,2.99940011,3334.0,3333.1,0.0300021]
[1768356190011,2.9990403,3334.4,3333.1,0.0300021]
[1768356190012,2.99902005,3334.5,3333.2,1.48425904]
[1768356190186,2.9990403,3334.4,3333.2,1.45425784]
[1768356190390,5.9980806,3334.4,3333.2,1.45425784]
[1768356190707,5.9980806,3334.4,3333.3,1.45425784]
[1768356191611,5.9980806,3334.4,3333.3,4.45425871]
[1768356191909,1.40984146,3334.3,3333.0,3.00022837]
[1768356192214,1.40984146,3334.3,3333.3,0.001]
[1768356193752,2.9992202,3334.2,3333.3,0.001]
[1768356194054,5.9984404,3334.2,3333.3,0.001]
[1768356194855,1.40984146,3334.1,3333.3,0.001]
[1768356195013,0.409,3334.0,3333.3,0.001]
[1768356195828,2.99949008,3333.9,3333.3,0.001]
[1768356196147,5.99898016,3333.9,3333.3,0.001]
[1768356196352,2.99949008,3333.9,3333.3,0.001]
[1768356199750,5.99898016,3333.9,3333.3,0.001]
[1768356200048,4.40053903,3333.9,3333.3,0.001]
[1768356201023,7.40002911,3333.9,3333.3,0.001]
[1768356201653,1.40104895,3333.8,3333.3,0.001]
[1768356202156,1.40104895,3333.6,3333.3,0.001]
[1768356202364,1.40104895,3333.4,3331.9,4.3745312]
[1768356202668,1.40104895,3333.4,3331.6,1.37329388]
[1768356202868,1.40104895,3333.4,3331.9,0.409]
[1768356203156,1.40104895,3333.2,3331.7,0.409]
[1768356203359,1.40104895,3333.2,3331.8,0.0300138]
[1768356203566,1.40104895,3333.2,3331.9,3.00124246]
[1768356204141,1.40104895,3333.0,3331.9,1.37329388]
[1768356204350,0.409,3332.9,3331.9,1.37329388]
[1768356204648,0.409,3332.9,3332.0,2.11089939]
[1768356205752,0.409,3332.9,3332.1,0.0300111]
[1768356205941,0.409,3332.9,3332.0,2.11089939]
[1768356206657,1.40104895,3332.8,3332.0,3.73880039]
[1768356207046,1.40104895,3332.8,3332.1,0.0300111]
[1768356207359,1.40104895,3332.8,3332.0,3.73880039]
[1768356208161,1.40104895,3332.8,3332.0,0.73760551]
[1768356208328,3.40944318,3332.9,3331.9,4.37453228]
[1768356208959,6.40988636,3332.9,3331.9,1.37329388]
[1768356209428,7.81093531,3332.9,3331.8,3.001322]
[1768356209628,7.81093531,3332.9,3331.8,1.37329388]
[1768356210042,4.81049213,3332.9,3331.9,1.37329388]
[1768356210241,4.81049213,3332.9,3331.9,1.85467052]
[1768356210446,1.40104895,3332.8,3331.9,0.48137664]
[1768356210640,1.40104895,3332.8,3331.8,3.00133744]
[1768356210853,1.40104895,3332.8,3331.7,7.26044792]
[1768356211035,4.40156239,3332.8,3331.8,3.00138063]
[1768356211730,3.00051344,3332.8,3331.9,1.37329388]
[1768356213060,3.00051344,3332.8,3331.8,3.00138063]
[1768356213260,3.00051344,3332.8,3331.9,0.72603806]
[1768356214430,3.00051344,3332.8,3331.9,2.09933194]
[1768356215442,3.00051344,3332.8,3331.9,5.10060794]
[1768356215863,6.00102688,3332.8,3331.9,2.09933194]
[1768356216057,4.40534118,3332.8,3331.9,3.72732291]
[1768356216362,3.00051344,3332.8,3332.0,0.41373229]
[1768356216561,3.00051344,3332.8,3332.2,0.001]
[1768356216932,6.00102688,3332.8,3332.2,0.001]
[1768356217365,1.40482774,3332.7,3332.2,0.001]
[1768356217940,1.40482774,3332.7,3331.3,3.85]
[1768356218141,1.40482774,3332.5,3331.2,1.85237143]
[1768356218340,1.40482774,3332.3,3331.2,1.85237143]
[1768356218537,1.40482774,3332.3,3331.2,1.44237143]
[1768356219554,3.00102034,3332.2,3331.2,1.44237143]
[1768356219788,6.00204068,3332.2,3331.2,1.44237143]
[1768356219956,1.40482774,3332.1,3331.1,0.001]
[1768356220285,1.40482774,3331.9,3331.1,0.001]
[1768356221673,6.00276126,3331.8,3331.1,0.001]
[1768356224776,7.407589,3331.8,3331.1,0.001]
[1768356225281,3.41131747,3331.9,3331.1,0.001]
[1768356225475,6.41263494,3331.9,3331.1,0.001]
[1768356225687,0.78174627,3331.8,3331.1,0.001]
[1768356226182,3.00147072,3331.7,3331.1,0.001]
[1768356226679,6.00294144,3331.7,3331.1,0.001]
[1768356226979,1.40482774,3331.6,3331.1,0.001]
[1768356227886,3.00147072,3331.7,3331.1,0.001]
[1768356228681,6.00294144,3331.7,3331.1,0.001]
[1768356229473,6.72241021,3331.7,3331.1,0.001]
[1768356230354,1.40482774,3331.6,3331.1,0.001]
[1768356231100,1.40482774,3331.6,3330.4,1.44237143]
[1768356231671,0.41,3331.5,3330.5,1.44237143]
[1768356231870,3.001741,3331.4,3330.5,1.44237143]
[1768356232394,1.40482774,3331.3,3330.5,3.00248077]
[1768356232600,1.40482774,3331.3,3330.3,0.44002732]
[1768356232764,3.001741,3331.4,3330.4,1.44237143]
[1768356233279,6.003482,3331.4,3330.4,1.44237143]
[1768356233600,6.78531297,3331.4,3330.4,1.44237143]
[1768356234461,6.78531297,3331.4,3330.4,4.44501207]
[1768356234666,6.78531297,3331.4,3330.5,1.44237143]
[1768356236487,3.78357197,3331.4,3330.5,1.44237143]
[1768356236696,3.78357197,3331.4,3330.6,1.44237143]
[1768356236868,3.001741,3331.4,3330.6,1.44237143]
[1768356237397,6.00276126,3331.8,3330.6,1.44237143]
[1768356237701,0.41,3331.7,3330.6,1.44237143]
[1768356237995,7.407589,3331.8,3330.5,3.00250911]
[1768356237996,3.00138063,3331.8,3330.8,1.44237143]
[1768356238197,6.00172734,3332.4,3330.9,1.47239334]
[1768356238398,6.41172734,3332.4,3331.1,1.44237143]
[1768356238597,1.40482774,3332.3,3331.0,0.18823933]
[1768356238781,1.40482774,3332.3,3331.0,1.63061076]
[1768356238978,1.40482774,3332.3,3330.7,1.44237143]
[1768356239176,1.40482774,3332.3,3330.9,0.41]
[1768356239699,1.40482774,3332.3,3330.6,6.85241029]
[1768356239700,1.40482774,3332.3,3330.6,4.26]
[1768356239882,1.40482774,3332.3,3330.6,7.26245185]
[1768356240083,1.40482774,3332.3,3330.6,5.29237143]
[1768356240281,1.40482774,3332.1,3330.7,0.52923714]
[1768356240501,1.40482774,3332.1,3331.1,0.001]
[1768356240675,1.40682774,3331.5,3331.1,0.001]
[1768356241002,1.40482774,3331.3,3330.0,1.44237143]
[1768356241203,1.40482774,3331.3,3329.8,0.001]
[1768356241504,1.40482774,3331.1,3329.8,0.001]
[1768356241691,1.40482774,3331.1,3329.8,1.44337143]
[1768356241897,1.40482774,3331.1,3329.9,1.44237143]
[1768356242092,0.41,3331.0,3329.9,1.44237143]
[1768356242797,0.41,3331.0,3329.8,0.001]
[1768356242798,1.40482774,3330.8,3329.8,0.001]
[1768356242999,1.40482774,3330.6,3329.8,0.001]
[1768356243292,0.88140387,3330.7,3329.8,0.001]
[1768356243494,4.40701933,3330.9,3330.0,1.44237143]
[1768356243698,4.40701933,3330.9,3329.9,3.00309031]
[1768356243699,1.40482774,3330.8,3329.9,3.00309031]
[1768356244108,3.00219159,3330.9,3330.0,1.44237143]
[1768356245403,3.00219159,3330.9,3329.8,3.00415077]
[1768356245611,3.00219159,3330.9,3329.9,3.00305566]
[1768356245910,3.00219159,3330.9,3329.8,3.00415289]
[1768356246105,3.78410515,3330.9,3329.8,3.74431678]
[1768356246406,3.78410515,3330.9,3329.8,2.13530064]
[1768356246715,3.78410515,3330.9,3329.8,5.13841055]
[1768356248607,6.78629674,3330.9,3329.8,5.13841055]
[1768356249356,5.21041498,3330.9,3329.8,5.13841055]
[1768356249612,5.21041498,3330.9,3329.9,0.81416819]
[1768356249993,5.21041498,3330.9,3329.9,2.20830494]
[1768356251195,4.42850142,3330.9,3329.9,2.20830494]
[1768356251376,1.42630983,3330.9,3329.9,5.2113718]
[1768356251579,3.00219381,3330.9,3330.0,1.39413675]
[1768356252794,1.42630983,3330.8,3330.1,0.001]
[1768356253414,4.42863844,3330.8,3330.1,0.001]
[1768356256511,4.42865097,3330.8,3330.1,0.001]
[1768356257492,1.36433979,3330.7,3330.1,0.001]
[1768356257811,1.36433979,3330.5,3330.1,0.001]
[1768356258382,1.36433979,3330.4,3329.8,0.001]
[1768356258614,1.64460305,3330.3,3329.8,0.001]
[1768356258820,1.36433979,3330.1,3329.8,0.001]
[1768356259017,0.16446125,3330.0,3329.8,0.001]
[1768356259722,3.00307797,3330.0,3329.8,0.001]
[1768356260585,4.36726111,3330.1,3329.8,0.001]
[1768356261136,3.00292132,3330.1,3329.8,0.001]
[1768356261632,6.00591855,3330.1,3329.8,0.001]
[1768356261924,6.0056453,3330.2,3329.8,0.001]
[1768356262131,6.74264381,3330.2,3329.8,0.001]
[1768356262634,0.41,3330.1,3329.8,0.001]
[1768356264364,3.003003,3330.0,3329.8,0.001]
[1768356265333,3.41292461,3330.1,3329.8,0.001]
[1768356265631,6.41584922,3330.1,3329.8,0.001]
[1768356265835,7.26756797,3330.1,3329.8,0.001]
[1768356266133,4.26464336,3330.1,3329.8,0.001]
[1768356266794,7.26756797,3330.1,3329.8,0.001]
[1768356267694,8.63190776,3330.1,3329.8,0.001]
[1768356267929,1.36433979,3330.0,3329.8,0.001]
[1768356268182,1.36433979,3330.0,3329.0,1.45734101]
[1768356268466,1.36433979,3330.0,3329.1,1.64407511]
[1768356268959,6.00618636,3329.9,3329.1,1.64407511]
[1768356269130,7.37052615,3329.9,3329.1,1.64407511]
[1768356270550,1.36433979,3329.8,3329.1,0.1867341]
[1768356270937,7.37034579,3330.0,3329.1,1.64407511]
[1768356271258,8.53384618,3330.0,3329.1,1.45734101]
[1768356272440,7.16950639,3330.0,3328.9,1.45734101]
[1768356272640,8.53384618,3330.0,3328.9,1.45734101]
[1768356273457,8.53384618,3330.0,3329.0,1.45734101]
[1768356273827,1.36433979,3329.9,3329.0,1.45734101]
[1768356274029,1.36433979,3329.9,3329.0,2.91762143]
[1768356274250,1.36433979,3329.9,3329.1,1.45734101]
[1768356275368,3.00318337,3329.8,3329.1,1.45734101]
[1768356276163,3.00318337,3329.8,3329.4,0.001]
[1768356276772,4.38200645,3329.8,3329.4,0.001]
[1768356276931,1.37882308,3329.7,3329.4,0.001]
[1768356277136,3.00318337,3329.8,3329.4,0.001]
[1768356277636,1.37882308,3329.8,3329.4,0.001]
[1768356278138,6.00623262,3329.9,3329.4,0.001]
[1768356278336,6.76420592,3329.9,3329.4,0.001]
[1768356279467,8.143029,3329.9,3329.4,0.001]
[1768356279771,1.37882308,3329.8,3329.4,0.001]
[1768356281564,6.76420592,3329.9,3329.4,0.001]
[1768356283965,1.37882308,3329.8,3329.4,0.001]
[1768356284173,1.37882308,3329.6,3329.4,0.001]
[1768356284376,3.00345397,3329.5,3329.4,0.001]
[1768356287172,1.37882308,3329.5,3329.4,0.001]
[1768356287354,1.65968836,3329.5,3329.4,0.001]
[1768356287552,1.65968836,3329.5,3328.7,1.49296831]
[1768356287748,1.65968836,3329.4,3328.7,1.49296831]
[1768356287947,1.37882308,3329.4,3328.7,1.49296831]
[1768356288873,1.37882308,3329.4,3328.4,1.49296831]
[1768356289172,6.00726878,3329.3,3328.5,1.49296831]
[1768356289406,3.00363439,3329.3,3328.5,1.49296831]
[1768356289597,3.00363439,3329.3,3328.6,1.68326514]
[1768356291386,7.38573102,3329.5,3328.6,1.68326514]
[1768356291556,0.28075766,3329.4,3328.6,1.68326514]
[1768356291756,7.38573102,3329.5,3328.6,1.68326514]
[1768356291954,0.2807577,3329.4,3328.6,1.68326514]
[1768356292152,7.38573102,3329.5,3328.7,1.66129482]
[1768356292357,0.28073419,3329.4,3328.7,1.66129482]
[1768356292555,7.38573102,3329.5,3328.7,1.66129482]
[1768356292791,0.28073799,3329.4,3328.7,1.66129482]
[1768356293093,7.38573102,3329.5,3328.7,1.66129482]
[1768356293292,0.28073799,3329.4,3328.7,1.66129482]
[1768356293459,7.38573102,3329.5,3328.7,1.66129482]
[1768356293661,0.28072521,3329.4,3328.7,1.66129482]
[1768356293860,7.38573102,3329.5,3328.7,1.66129482]
[1768356294061,0.28072524,3329.4,3328.7,1.66129482]
[1768356294291,7.38573102,3329.5,3328.8,0.18515917]
[1768356294592,0.28071829,3329.4,3328.8,0.18515917]
[1768356294772,7.38573102,3329.5,3328.8,0.18515917]
[1768356294972,3.00363439,3329.3,3328.8,0.18515917]
[1768356296492,1.78882308,3329.2,3328.2,0.001]
[1768356296690,1.37882308,3329.1,3328.2,0.001]
[1768356296989,1.37882308,3328.9,3328.2,0.001]
[1768356298660,1.37882308,3328.7,3328.2,0.001]
[1768356299075,1.37882308,3328.5,3328.2,0.001]
[1768356299411,3.00426605,3328.6,3328.5,0.001]
[1768356299595,3.64611926,3328.6,3328.5,0.001]
[1768356304103,0.30036344,3329.2,3328.5,0.001]
[1768356304104,1.37882308,3330.5,3328.5,1.49396831]
[1768356304408,1.37882308,3329.6,3328.5,1.49396831]
[1768356304569,2.06907311,3329.5,3328.5,1.49396831]
[1768356304892,0.28025003,3329.4,3328.7,1.49296831]
[1768356305300,1.3704504,3330.7,3329.3,11.18035356]
[1768356305629,1.3704504,3330.7,3329.8,9.73142177]
[1768356305828,0.41,3330.6,3329.7,1.44893179]
[1768356306032,1.7804504,3330.6,3329.7,1.44893179]
[1768356306648,0.41,3330.6,3329.9,1.44893179]
[1768356306798,0.41,3330.6,3329.9,2.56696715]
[1768356307512,0.41,3330.6,3330.0,1.44893179]
[1768356307707,0.002,3331.5,3330.1,11.18035356]
[1768356307708,1.3704504,3331.1,3330.1,11.18035356]
[1768356307941,0.41,3331.0,3330.1,11.18035356]
[1768356308633,0.41,3331.0,3330.2,1.44893179]
[1768356308797,0.41,3331.0,3330.5,1.44893179]
[1768356308994,0.41,3331.2,3330.5,1.44893179]
[1768356309452,0.41,3331.2,3330.7,11.18035356]
[1768356309678,0.412,3331.5,3330.7,11.18035356]
[1768356309836,0.75335779,3331.5,3330.7,11.18035356]
[1768356310469,3.75501739,3331.5,3330.7,11.18035356]
[1768356310673,0.75335779,3331.5,3330.7,11.18035356]
[1768356310880,0.412,3331.5,3330.7,11.18035356]
[1768356311033,0.002,3331.2,3330.7,11.18035356]
[1768356311449,0.002,3331.5,3330.8,1.44893179]
[1768356312063,0.002,3331.5,3330.6,9.73142177]
[1768356312064,0.002,3331.5,3330.6,11.18035356]
[1768356312487,0.002,3331.5,3330.8,1.44893179]
[1768356312688,0.30234713,3331.5,3330.8,1.44893179]
[1768356312980,0.002,3331.5,3330.8,1.44893179]
[1768356314392,1.3724504,3332.5,3331.5,1.44893179]
[1768356314611,1.3704504,3332.4,3331.1,1.85893179]
[1768356314769,1.3704504,3332.3,3331.3,9.73142177]
[1768356315084,1.3704504,3332.3,3331.3,12.33938892]
[1768356315285,0.41,3332.4,3331.4,1.44893179]